bitfinex/quotes_SOLUSD_20260214
["timestamp","ask_amount","ask_price","bid_price","bid_amount"]
[1771070696577,0.5,87.179,87.152,62.19419518]
[1771070696897,0.5,87.179,87.139,59.01636997]
[1771070696898,0.5,87.169,87.14,11.47578609]
[1771070697278,0.5,87.159,87.127,11.47749836]
[1771070697482,0.5,87.159,87.128,50.76]
[1771070698278,0.5,87.15,87.129,11.4772349]
[1771070698791,0.5,87.159,87.129,11.4772349]
[1771070701998,0.5,87.158,87.129,11.4772349]
[1771070702301,0.5,87.168,87.129,40.17032216]
[1771070703197,0.5,87.168,87.13,59.01636997]
[1771070703600,0.5,87.169,87.13,59.01636997]
[1771070704279,0.5,87.159,87.131,11.47697145]
[1771070704479,0.5,87.159,87.132,50.9]
[1771070705301,0.5,87.149,87.11,0.2]
[1771070705486,0.5,87.149,87.111,62.41960647]
[1771070705800,0.5,87.139,87.111,62.41960647]
[1771070707518,0.5,87.139,87.111,11.47960647]
[1771070707702,0.5,87.139,87.113,11.47934292]
[1771070708509,38.46,87.183,87.113,40.17770022]
[1771070708510,0.5,87.154,87.113,40.17770022]
[1771070709208,0.5,87.16,87.113,40.17770022]
[1771070710508,0.5,87.159,87.113,40.17770022]
[1771070711926,0.5,87.149,87.114,51.02]
[1771070712215,0.5,87.149,87.113,40.17770022]
[1771070712598,0.5,87.149,87.115,11.47907937]
[1771070714813,0.5,87.149,87.117,11.47881584]
[1771070715016,0.5,87.139,87.114,51.04]
[1771070716018,0.5,87.139,87.115,11.47907937]
[1771070716917,0.5,87.139,87.111,62.61960647]
[1771070717316,0.5,87.139,87.111,91.31862266]
[1771070717520,0.5,87.149,87.111,91.31862266]
[1771070717720,56.34,87.177,87.112,59.01636997]
[1771070717721,0.5,87.159,87.112,59.01636997]
[1771070717921,0.5,87.159,87.113,59.01636997]
[1771070718501,0.5,87.159,87.114,51.2]
[1771070719306,0.5,87.159,87.115,40.17677781]
[1771070722922,0.5,87.169,87.12,3.37219381]
[1771070723422,56.24,87.194,87.115,97.57217469]
[1771070723423,0.5,87.205,87.16,3.37219381]
[1771070723728,0.5,87.205,87.161,51.46]
[1771070724804,0.5,87.189,87.157,11.47354773]
[1771070725203,11.46946827,87.188,87.157,11.47354773]
[1771070725408,0.5,87.187,87.157,11.47354773]
[1771070727806,0.5,87.187,87.157,40.15741706]
[1771070728008,0.5,87.196,87.16,3.37219381]
[1771070728209,0.5,87.196,87.17,3.37219381]
[1771070729120,0.5,87.196,87.171,11.47170503]
[1771070729327,0.5,87.196,87.172,51.5]
[1771070729531,0.5,87.196,87.171,11.47170503]
[1771070729715,0.5,87.196,87.173,51.5]
[1771070731224,0.5,87.207,87.174,40.14958588]
[1771070731432,0.5,87.206,87.175,51.52]
[1771070731634,0.5,87.206,87.174,40.14958588]
[1771070731934,0.5,87.206,87.175,51.52]
[1771070732836,0.5,87.199,87.16,3.37219381]
[1771070733022,0.5,87.199,87.161,51.54]
[1771070733733,0.5,87.199,87.162,28.6822239]
[1771070734129,0.5,87.207,87.17,3.37219381]
[1771070734334,0.5,87.206,87.17,3.37219381]
[1771070735315,0.5,87.206,87.171,40.15096762]
[1771070737240,0.5,87.222,87.19,3.37219381]
[1771070737451,0.5,87.222,87.191,51.64]
[1771070738257,0.5,87.222,87.192,51.66]
[1771070738733,0.5,87.239,87.21,3.37219381]
[1771070738938,0.5,87.239,87.211,51.68]
[1771070739246,0.5,87.239,87.212,11.46631197]
[1771070739422,0.5,87.239,87.212,63.14631197]
[1771070740120,0.5,87.238,87.212,63.14631197]
[1771070741822,0.5,87.238,87.212,11.46631197]
[1771070742022,0.5,87.238,87.213,51.7]
[1771070742523,0.5,87.229,87.191,28.67250431]
[1771070742723,0.5,87.219,87.19,11.46920518]
[1771070743539,0.5,87.217,87.189,13.93217296]
[1771070744049,0.5,87.209,87.189,13.93217296]
[1771070744853,0.5,87.209,87.189,25.40143397]
[1771070745046,0.5,87.209,87.189,13.93217296]
[1771070745759,0.5,87.209,87.189,25.4014673]
[1771070746730,0.5,87.217,87.19,11.46920518]
[1771070746938,0.1,87.24,87.19,14.84139899]
[1771070746939,0.5,87.228,87.19,14.84139899]
[1771070747145,0.5,87.228,87.19,43.51441195]
[1771070748049,0.5,87.228,87.191,51.8]
[1771070748737,0.5,87.228,87.19,43.51441195]
[1771070748944,0.5,87.226,87.191,51.82]
[1771070749843,0.5,87.226,87.192,40.14129736]
[1771070750745,0.5,87.224,87.192,40.14129736]
[1771070755844,0.5,87.234,87.192,40.14129736]
[1771070757054,0.5,87.227,87.192,40.14129736]
[1771070758658,0.5,87.227,87.194,11.46867903]
[1771070761651,0.5,87.227,87.196,11.46841598]
[1771070763566,0.5,87.225,87.196,11.46841598]
[1771070764066,0.5,87.209,87.189,13.93217296]
[1771070764245,0.5,87.209,87.189,11.93217296]
[1771070764961,3.36866195,87.2,87.189,11.93217296]
[1771070765547,11.46802142,87.199,87.189,11.93217296]
[1771070766849,3.36866195,87.21,87.19,0.5]
[1771070767074,3.36866195,87.22,87.19,0.5]
[1771070767748,0.1,87.27,87.201,0.5]
[1771070767952,11.46276321,87.239,87.201,0.5]
[1771070769364,3.46866195,87.24,87.203,0.5]
[1771070770570,11.46276321,87.239,87.205,0.5]
[1771070772957,40.11967124,87.239,87.205,0.5]
[1771070773353,40.11967124,87.239,87.205,11.96710892]
[1771070773651,40.11967124,87.239,87.206,0.5]
[1771070775779,3.36866195,87.23,87.206,0.5]
[1771070777176,11.46407731,87.229,87.206,0.5]
[1771070778978,3.46866195,87.24,87.208,0.5]
[1771070778979,11.46289461,87.238,87.208,0.5]
[1771070780560,0.1,87.24,87.21,0.5]
[1771070780979,11.46276321,87.239,87.21,0.5]
[1771070784154,0.1,87.24,87.212,0.5]
[1771070784766,3.46866195,87.24,87.212,0.5]
[1771070784961,0.1,87.24,87.212,0.5]
[1771070785165,3.46866195,87.24,87.212,0.5]
[1771070785877,0.1,87.24,87.212,0.5]
[1771070786258,0.1,87.24,87.214,0.5]
[1771070786464,3.46866195,87.24,87.214,0.5]
[1771070787480,11.46276321,87.239,87.214,0.5]
[1771070787865,11.46276321,87.239,87.197,0.5]
[1771070788563,11.46276321,87.239,87.198,0.5]
[1771070789556,11.46276321,87.239,87.2,0.5]
[1771070790988,11.46276321,87.239,87.202,0.5]
[1771070792293,0.1,87.24,87.22,3.36866195]
[1771070792473,11.55953668,87.264,87.239,0.5]
[1771070793685,0.1,87.264,87.239,0.5]
[1771070794087,0.1,87.259,87.239,0.5]
[1771070794395,0.1,87.259,87.233,0.4971693]
[1771070795595,0.1,87.259,87.234,0.4971693]
[1771070795797,40.10587952,87.269,87.234,0.4971693]
[1771070795976,0.1,87.27,87.234,0.4971693]
[1771070796491,11.45882272,87.269,87.234,0.4971693]
[1771070796690,0.1,87.27,87.234,0.4971693]
[1771070797398,0.1,87.259,87.229,11.4640691]
[1771070797573,0.1,87.259,87.23,0.4971693]
[1771070797892,0.1,87.258,87.23,0.4971693]
[1771070798395,0.1,87.258,87.232,0.4971693]
[1771070798797,11.46013591,87.259,87.232,0.4971693]
[1771070799778,0.1,87.264,87.234,0.4971693]
[1771070801496,0.1,87.268,87.234,0.4971693]
[1771070803171,0.1,87.268,87.228,0.49518722]
[1771070803868,0.1,87.268,87.23,3.36866195]
[1771070804073,11.45882272,87.269,87.24,3.36866195]
[1771070804278,11.45882272,87.269,87.241,0.49518722]
[1771070807396,0.1,87.27,87.243,0.49518722]
[1771070808094,0.1,87.269,87.243,0.49518722]
[1771070809196,0.1,87.268,87.236,0.49518722]
[1771070809401,0.1,87.268,87.222,11.46499736]
[1771070809402,0.1,87.259,87.223,0.49518722]
[1771070809586,40.10587952,87.269,87.223,0.49518722]
[1771070809587,0.1,87.265,87.223,0.49518722]
[1771070810188,3.36866195,87.26,87.223,0.49518722]
[1771070810396,3.46866195,87.26,87.223,0.49518722]
[1771070810585,0.1,87.259,87.223,0.49518722]
[1771070811208,3.46866195,87.27,87.23,3.36866195]
[1771070811398,11.45882272,87.269,87.231,0.49518722]
[1771070812699,0.1,87.268,87.231,0.49518722]
[1771070812897,0.1,87.259,87.225,0.49518722]
[1771070813107,0.1,87.249,87.225,0.49518722]
[1771070813326,0.1,87.249,87.221,18.19669696]
[1771070814907,0.1,87.239,87.201,0.49518722]
[1771070815213,0.1,87.239,87.186,52.82]
[1771070815214,0.1,87.247,87.203,0.49518722]
[1771070815505,0.1,87.247,87.205,0.49518722]
[1771070820311,0.1,87.247,87.207,0.49518722]
[1771070821398,0.1,87.239,87.207,0.49518722]
[1771070822409,0.1,87.229,87.201,0.45095354]
[1771070823222,0.1,87.229,87.203,0.45095354]
[1771070825618,0.1,87.229,87.202,11.46762688]
[1771070825619,0.1,87.219,87.187,0.45095354]
[1771070827097,0.1,87.209,87.182,11.47024592]
[1771070827801,11.56670641,87.209,87.182,0.45095354]
[1771070828108,0.1,87.208,87.182,0.45095354]
[1771070830613,0.1,87.208,87.184,0.45095354]
[1771070832422,11.46670641,87.209,87.165,0.45095354]
[1771070832423,0.1,87.189,87.165,0.45095354]
[1771070832622,3.36860215,87.18,87.165,0.45095354]
[1771070834525,11.47065233,87.179,87.159,0.45095354]
[1771070835508,3.36860215,87.18,87.161,0.45095354]
[1771070835708,3.36860215,87.19,87.161,0.45095354]
[1771070835910,14.83780733,87.19,87.161,0.45095354]
[1771070836105,3.36860215,87.18,87.161,0.45095354]
[1771070837012,11.46946827,87.188,87.161,0.45095354]
[1771070837724,11.56946827,87.188,87.161,0.45095354]
[1771070839520,3.36860215,87.19,87.161,0.45095354]
[1771070839720,55.24,87.191,87.161,0.45095354]
[1771070839919,0.1,87.214,87.171,0.45095354]
[1771070840138,0.1,87.209,87.171,0.45095354]
[1771070840434,55.28,87.214,87.171,0.45095354]
[1771070840435,0.1,87.199,87.171,0.45095354]
[1771070841121,55.28,87.214,87.171,0.45095354]
[1771070841122,0.1,87.209,87.171,0.45095354]
[1771070842327,0.1,87.208,87.173,0.45095354]
[1771070842543,0.1,87.199,87.165,0.45095354]
[1771070846033,0.1,87.198,87.165,0.45095354]
[1771070846929,0.1,87.198,87.167,0.45095354]
[1771070851318,11.46802142,87.199,87.151,59.01636997]
[1771070851319,0.1,87.189,87.152,0.48513938]
[1771070851520,0.1,87.189,87.153,0.48513938]
[1771070851715,0.1,87.188,87.154,11.95908205]
[1771070851915,0.1,87.188,87.155,0.48513938]
[1771070852115,0.1,87.186,87.155,0.48513938]
[1771070852312,0.1,87.185,87.155,0.48513938]
[1771070854141,0.1,87.185,87.154,11.47394267]
[1771070854142,0.1,87.185,87.157,0.48513938]
[1771070856438,3.36860215,87.18,87.143,0.48513938]
[1771070856635,0.1,87.179,87.143,0.48513938]
[1771070858925,0.1,87.178,87.145,0.48513938]
[1771070860741,55.48,87.183,87.145,0.48513938]
[1771070860934,66.95014966,87.183,87.147,0.45155869]
[1771070861140,0.1,87.182,87.147,0.45155869]
[1771070861338,0.1,87.179,87.147,0.45155869]
[1771070861638,0.1,87.169,87.147,0.45155869]
[1771070861939,0.1,87.182,87.147,0.45155869]
[1771070862146,0.1,87.179,87.147,0.45155869]
[1771070863538,11.47065233,87.179,87.149,0.45155869]
[1771070865843,0.1,87.179,87.149,0.45155869]
[1771070868552,0.1,87.179,87.141,59.01636997]
[1771070868553,0.1,87.169,87.143,0.45155869]
[1771070868759,0.1,87.169,87.141,59.01636997]
[1771070869455,0.1,87.168,87.14,0.2]
[1771070869639,0.1,87.159,87.14,0.2]
[1771070871645,0.1,87.158,87.14,0.2]
[1771070872549,3.36860215,87.15,87.14,0.2]
[1771070873049,0.1,87.153,87.14,0.2]
[1771070874063,3.36860215,87.15,87.14,0.2]
[1771070874353,0.1,87.191,87.142,0.45155869]
[1771070874548,0.1,87.197,87.151,0.45155869]
[1771070874855,55.44,87.199,87.161,0.45155869]
[1771070875143,11.46844137,87.196,87.161,0.45155869]
[1771070875724,55.44,87.204,87.171,0.45155869]
[1771070876153,55.44,87.204,87.173,0.45155869]
[1771070876453,11.46721612,87.206,87.173,0.45155869]
[1771070877453,0.48802681,87.205,87.173,0.45155869]
[1771070878231,0.48802681,87.203,87.175,0.45155869]
[1771070880245,0.48802681,87.199,87.161,0.45155869]
[1771070880639,0.48802681,87.205,87.162,0.45155869]
[1771070880844,11.46674216,87.209,87.171,0.45155869]
[1771070881043,0.48802681,87.208,87.171,0.45155869]
[1771070882249,0.47194239,87.206,87.173,0.48835337]
[1771070882748,11.93834712,87.212,87.181,0.48835337]
[1771070884036,0.47194239,87.211,87.181,0.48835337]
[1771070884239,11.4668379,87.208,87.174,0.48835337]
[1771070884456,0.47194239,87.207,87.174,0.48835337]
[1771070885162,0.47194239,87.199,87.169,0.48835337]
[1771070886365,0.47194239,87.197,87.169,0.48835337]
[1771070886566,0.47194239,87.197,87.171,0.48835337]
[1771070887569,55.48,87.201,87.171,0.48835337]
[1771070888545,0.47194239,87.2,87.173,0.48835337]
[1771070888765,0.47194239,87.199,87.162,0.48835337]
[1771070889078,0.47194239,87.199,87.163,0.48835337]
[1771070889241,0.47194239,87.199,87.171,0.48835337]
[1771070889678,55.97194239,87.204,87.171,0.48835337]
[1771070890482,0.47194239,87.203,87.171,0.48835337]
[1771070890651,11.93946825,87.203,87.174,0.48835337]
[1771070891146,55.5,87.204,87.181,0.48835337]
[1771070891748,11.46749538,87.203,87.181,0.48835337]
[1771070892047,55.5,87.204,87.181,0.48835337]
[1771070892250,11.46698795,87.207,87.181,0.48835337]
[1771070892563,11.93893034,87.207,87.181,0.48835337]
[1771070892862,11.46710088,87.206,87.181,0.48835337]
[1771070893072,11.93904327,87.206,87.183,0.48835337]
[1771070893852,0.47194239,87.205,87.183,0.48835337]
[1771070895276,0.47194239,87.205,87.184,11.46999449]
[1771070895571,0.47194239,87.205,87.184,11.95834786]
[1771070895774,0.47194239,87.205,87.185,0.48835337]
[1771070896666,0.47194239,87.204,87.185,0.48835337]
[1771070898350,0.47194239,87.202,87.185,0.48835337]
[1771070898669,0.47194239,87.202,87.179,0.48835337]
[1771070898978,55.52,87.215,87.181,0.48835337]
[1771070899153,0.47194239,87.219,87.191,0.48835337]
[1771070899863,0.47194239,87.219,87.201,0.48835337]
[1771070900051,11.46486591,87.223,87.201,0.48835337]
[1771070900256,0.47194239,87.222,87.201,0.48835337]
[1771070901553,0.47194239,87.222,87.202,11.95598025]
[1771070901754,0.47194239,87.222,87.191,0.48835337]
[1771070902361,0.47194239,87.222,87.193,0.48835337]
[1771070904974,0.47194239,87.222,87.195,0.48835337]
[1771070908189,0.47194239,87.222,87.196,11.46841598]
[1771070908479,0.47194239,87.222,87.197,0.48835337]
[1771070910683,11.46512881,87.221,87.197,0.48835337]
[1771070910867,0.47194239,87.222,87.197,0.48835337]
[1771070911582,0.47058509,87.225,87.197,0.48835337]
[1771070912087,55.54,87.226,87.201,0.450964]
[1771070912263,55.54,87.226,87.203,0.450964]
[1771070913371,0.47058509,87.235,87.203,0.450964]
[1771070914185,0.47058509,87.233,87.203,59.01636997]
[1771070914390,0.47058509,87.229,87.203,59.01636997]
[1771070915171,11.46420874,87.228,87.203,59.01636997]
[1771070915489,0.47058509,87.227,87.203,59.01636997]
[1771070916276,11.4644716,87.226,87.203,59.01636997]
[1771070916477,0.47058509,87.225,87.199,0.450964]
[1771070917187,0.47058509,87.225,87.195,0.450964]
[1771070920003,0.47058509,87.223,87.191,0.450964]
[1771070920174,0.47058509,87.219,87.191,0.450964]
[1771070921393,0.46410822,87.217,87.191,0.450964]
[1771070921579,0.46410822,87.217,87.186,0.48175534]
[1771070921779,0.46410822,87.217,87.187,0.48175534]
[1771070922293,0.46410822,87.216,87.187,0.48175534]
[1771070924288,0.46410822,87.214,87.187,0.48175534]
[1771070925302,0.46410822,87.214,87.188,11.46946827]
[1771070925600,0.46410822,87.214,87.189,0.48175534]
[1771070926700,0.46410822,87.212,87.189,0.48175534]
[1771070928502,0.46410822,87.21,87.189,0.48175534]
[1771070930307,0.46410822,87.199,87.172,0.48175534]
[1771070930493,11.46696939,87.207,87.172,0.48175534]
[1771070931081,0.46410822,87.206,87.172,0.48175534]
[1771070931504,0.46410822,87.206,87.174,0.48175534]
[1771070933601,11.46529381,87.22,87.181,0.48175534]
[1771070933995,0.46410822,87.219,87.181,0.48175534]
[1771070936131,0.46410822,87.217,87.183,0.48175534]
[1771070936625,0.46410822,87.209,87.183,0.48175534]
[1771070937714,0.46410822,87.209,87.164,0.48175534]
[1771070938299,0.46410822,87.207,87.166,0.48175534]
[1771070940715,0.46410822,87.207,87.168,0.48175534]
[1771070940907,0.46410822,87.207,87.171,0.48175534]
[1771070941104,0.49733742,87.205,87.171,0.48175534]
[1771070942925,0.49733742,87.199,87.167,11.47223146]
[1771070944513,11.46815293,87.198,87.167,11.47223146]
[1771070944719,0.49733742,87.197,87.167,11.47223146]
[1771070945106,0.49733742,87.197,87.165,0.45455061]
[1771070945818,0.49733742,87.197,87.162,59.01636997]
[1771070946021,0.49733742,87.197,87.157,11.47353298]
[1771070946022,0.49733742,87.179,87.149,0.45455061]
[1771070947321,11.46933672,87.189,87.151,0.45455061]
[1771070948023,0.49733742,87.19,87.161,0.45455061]
[1771070949327,0.49733742,87.189,87.161,0.45455061]
[1771070949826,0.49733742,87.187,87.155,11.92833704]
[1771070950010,0.49733742,87.187,87.156,0.45455061]
[1771070951332,0.49733742,87.179,87.15,0.45455061]
[1771070951835,0.49733742,87.177,87.15,0.45455061]
[1771070952018,0.49733742,87.169,87.141,0.45455061]
[1771070952907,0.49733742,87.167,87.141,0.45455061]
[1771070954016,0.49733742,87.167,87.14,0.2]
[1771070954419,0.49733742,87.159,87.14,0.2]
[1771070954730,0.49733742,87.159,87.141,0.45455061]
[1771070955230,0.49733742,87.157,87.141,0.45455061]
[1771070956334,0.49733742,87.157,87.14,0.2]
[1771070956335,11.97101679,87.156,87.14,0.2]
[1771070956917,0.49733742,87.155,87.14,0.2]
[1771070958323,0.49733742,87.153,87.128,11.47723659]
[1771070958510,0.49733742,87.153,87.128,11.9317872]
[1771070958716,11.97051275,87.16,87.129,0.45455061]
[1771070958924,0.49733742,87.159,87.129,0.45455061]
[1771070960124,11.47341609,87.158,87.129,0.45455061]
[1771070960438,0.49733742,87.157,87.129,0.45455061]
[1771070960816,0.49733742,87.149,87.123,0.45455061]
[1771070962207,0.49733742,87.147,87.123,0.45455061]
[1771070962409,0.49733742,87.147,87.117,0.45455061]
[1771070962635,0.49733742,87.147,87.121,8.20877271]
[1771070963338,0.49733742,87.147,87.122,0.45455061]
[1771070963537,0.49733742,87.147,87.122,11.93270767]
[1771070964217,0.49733742,87.147,87.123,0.45455061]
[1771070964930,0.49733742,87.145,87.123,0.45455061]
[1771070965130,0.49733742,87.129,87.121,7.7542221]
[1771070965337,0.49733742,87.129,87.11,0.2]
[1771070965638,0.49733742,87.129,87.111,0.45455061]
[1771070966535,0.49733742,87.135,87.111,0.45455061]
[1771070967519,11.4765763,87.134,87.111,0.45455061]
[1771070967836,0.49733742,87.133,87.111,0.45455061]
[1771070969635,55.8,87.137,87.112,0.45455061]
[1771070970033,55.8,87.144,87.112,0.45455061]
[1771070970338,11.47398965,87.154,87.121,0.45455061]
[1771070970544,11.47398965,87.154,87.123,0.45455061]
[1771070970845,0.49733742,87.149,87.123,0.45455061]
[1771070971145,0.47410731,87.147,87.122,59.01636997]
[1771070971343,0.47410731,87.139,87.122,56.26042087]
[1771070971641,0.47410731,87.137,87.122,56.26042087]
[1771070971845,0.47410731,87.135,87.11,0.2]
[1771070972139,0.47410731,87.133,87.11,0.2]
[1771070972452,0.47410731,87.131,87.11,0.2]
[1771070973236,0.47410731,87.129,87.11,0.2]
[1771070973456,0.47410731,87.129,87.111,0.46558063]
[1771070974633,11.47736663,87.128,87.111,0.46558063]
[1771070976252,11.47736663,87.128,87.11,0.2]
[1771070976253,11.47763009,87.126,87.11,0.2]
[1771070976430,3.37009105,87.13,87.111,0.46558063]
[1771070976431,55.86,87.125,87.111,0.46558063]
[1771070977452,0.47410731,87.145,87.111,0.46558063]
[1771070977643,0.47410731,87.143,87.112,0.46558063]
[1771070978444,0.47410731,87.141,87.114,0.46558063]
[1771070979940,0.47410731,87.141,87.116,0.46558063]
[1771070980148,0.47410731,87.139,87.116,0.46558063]
[1771070980536,0.47410731,87.139,87.115,11.47907937]
[1771070980949,0.47410731,87.139,87.116,0.45309624]
[1771070981947,55.88,87.14,87.116,0.45309624]
[1771070982151,55.88,87.14,87.118,0.45309624]
[1771070982353,0.4552617,87.138,87.11,0.2]
[1771070982655,0.4552617,87.138,87.111,0.45309624]
[1771070982857,0.4552617,87.136,87.111,0.45309624]
[1771070985654,11.47644459,87.135,87.111,11.93268965]
[1771070985838,0.4552617,87.136,87.117,0.45309624]
[1771070986160,0.4552617,87.178,87.131,0.45309624]
[1771070986461,0.4552617,87.178,87.13,3.37009105]
[1771070986462,0.4552617,87.186,87.17,3.37009105]
[1771070986871,11.46986293,87.185,87.17,3.37009105]
[1771070987044,11.92512463,87.185,87.17,3.37009105]
[1771070989663,4.61729252,87.218,87.17,3.37009105]
[1771070989664,0.4552617,87.182,87.17,3.37009105]
[1771070990537,55.92,87.189,87.171,0.45309624]
[1771070991067,0.4552617,87.224,87.18,3.37009105]
[1771070991265,165.0,87.344,87.171,40.15096762]
[1771070991266,0.4552617,87.234,87.211,0.45309624]
[1771070991446,0.4552617,87.241,87.221,0.45309624]
[1771070991764,16.4752617,87.249,87.23,3.37009105]
[1771070991961,0.4552617,87.249,87.23,3.37009105]
[1771070992258,11.4614188,87.25,87.24,3.37009105]
[1771070992760,11.4614188,87.25,87.231,0.45309624]
[1771070995160,11.4614188,87.25,87.24,3.37009105]
[1771070995363,55.9,87.254,87.241,0.45309624]
[1771070997750,0.1,87.29,87.243,0.45309624]
[1771070997953,0.1,87.29,87.241,11.46237703]
[1771070997954,3.46545009,87.33,87.242,0.45309624]
[1771070997955,0.4552617,87.298,87.242,0.45309624]
[1771070998163,0.4552617,87.297,87.26,3.36545009]
[1771070998361,0.4552617,87.295,87.26,3.36545009]
[1771070998547,0.4552617,87.295,87.254,0.45309624]
[1771070999269,55.92,87.294,87.254,0.45309624]
[1771070999468,0.4552617,87.293,87.254,0.45309624]
[1771071000261,0.4552617,87.291,87.254,0.45309624]
[1771071000473,0.4552617,87.289,87.254,0.45309624]
[1771071000647,0.4552617,87.289,87.241,0.45309624]
[1771071000848,0.4552617,87.287,87.241,0.45309624]
[1771071001369,0.4552617,87.287,87.251,0.4704453]
[1771071002261,0.47379136,87.285,87.251,0.4704453]
[1771071003851,0.47379136,87.283,87.251,0.4704453]
[1771071004278,0.47379136,87.281,87.251,0.4704453]
[1771071006549,0.47379136,87.279,87.241,0.4704453]
[1771071006746,0.47379136,87.279,87.234,0.4704453]
[1771071006954,0.47379136,87.269,87.227,0.4704453]
[1771071007276,0.47379136,87.267,87.227,0.4704453]
[1771071007861,0.47379136,87.259,87.227,0.4704453]
[1771071008282,0.47379136,87.259,87.22,0.4704453]
[1771071008492,0.47379136,87.257,87.221,0.4704453]
[1771071009157,0.47379136,87.257,87.192,28.67214886]
[1771071009380,0.47379136,87.257,87.214,11.46604902]
[1771071009767,0.47379136,87.257,87.21,3.36545009]
[1771071010578,0.47379136,87.249,87.204,11.46728154]
[1771071011277,0.47379136,87.249,87.207,0.4704453]
[1771071011676,0.47379136,87.247,87.208,11.4668356]
[1771071012786,3.36545009,87.24,87.203,11.46749331]
[1771071012974,0.47379136,87.239,87.199,0.4704453]
[1771071013287,0.47379136,87.237,87.199,11.93846007]
[1771071013584,0.47379136,87.235,87.202,11.46749804]
[1771071013783,0.47379136,87.235,87.206,11.93751224]
[1771071013986,55.96,87.238,87.214,0.4704453]
[1771071014171,11.463026,87.237,87.214,0.4704453]
[1771071014570,0.47379136,87.257,87.221,0.4704453]
[1771071014768,56.45379136,87.256,87.221,0.4704453]
[1771071015265,0.47379136,87.255,87.221,0.4704453]
[1771071016183,0.47379136,87.253,87.221,0.4704453]
[1771071016688,0.47379136,87.253,87.222,11.46499736]
[1771071017784,0.47379136,87.253,87.222,11.93544266]
[1771071018375,55.98,87.256,87.223,0.4704453]
[1771071018564,0.47379136,87.254,87.223,0.4704453]
[1771071019384,11.46066128,87.255,87.223,0.4704453]
[1771071020382,11.46092397,87.253,87.223,0.4704453]
[1771071020685,11.93471533,87.253,87.223,0.4704453]
[1771071021286,11.93471533,87.253,87.225,0.4704453]
[1771071021585,11.45961833,87.263,87.231,0.4704453]
[1771071021889,11.93340969,87.263,87.231,0.4704453]
[1771071022188,0.47379136,87.262,87.231,0.4704453]
[1771071022576,0.47379136,87.26,87.227,0.4704453]
[1771071022894,0.47379136,87.259,87.227,0.4704453]
[1771071023998,0.47379136,87.257,87.22,11.93558239]
[1771071024293,0.47379136,87.255,87.22,11.93558239]
[1771071025288,0.47379136,87.255,87.221,0.4704453]
[1771071026281,0.47379136,87.253,87.223,0.4704453]
[1771071026681,11.45962697,87.263,87.23,3.36545009]
[1771071026891,56.02,87.262,87.231,0.4704453]
[1771071027474,0.47379136,87.261,87.231,0.4704453]
[1771071028591,0.47379136,87.259,87.231,11.93419587]
[1771071028806,0.47379136,87.259,87.232,0.4704453]
[1771071029005,0.47379136,87.274,87.241,0.4704453]
[1771071029287,11.93134939,87.279,87.251,0.4704453]
[1771071029691,0.47379136,87.278,87.251,0.4704453]
[1771071030575,0.47379136,87.278,87.252,11.46105533]
[1771071031005,0.47379136,87.278,87.252,11.93150063]
[1771071031298,0.47379136,87.278,87.24,3.36545009]
[1771071031299,0.48474093,87.276,87.247,11.95099296]
[1771071031477,0.48474093,87.276,87.248,0.48936441]
[1771071031872,0.48474093,87.28,87.251,0.48936441]
[1771071032173,0.48474093,87.279,87.247,11.46162855]
[1771071032375,0.48474093,87.279,87.247,11.95099296]
[1771071032596,0.48474093,87.277,87.249,11.46144941]
[1771071033176,0.48474093,87.277,87.241,11.95176299]
[1771071033787,0.1,87.3,87.251,0.48936441]
[1771071033994,0.58474093,87.3,87.271,0.48936441]
[1771071034180,0.1,87.3,87.281,0.48936441]
[1771071034678,0.1,87.3,87.282,11.45711601]
[1771071034883,0.1,87.3,87.282,11.94648042]
[1771071036987,0.1,87.3,87.283,0.48936441]
[1771071038991,0.1,87.3,87.28,3.36545009]
[1771071038992,0.1,87.3,87.284,11.94621789]
[1771071039299,0.1,87.3,87.29,3.36545009]
[1771071039503,0.1,87.3,87.291,0.48936441]
[1771071041498,0.1,87.3,87.284,11.45685348]
[1771071041499,0.1,87.3,87.29,3.36545009]
[1771071044484,0.1,87.3,87.285,0.48382039]
[1771071044805,0.1,87.3,87.28,3.36545009]
[1771071045013,0.48761163,87.299,87.271,0.48382039]